[Event "Hungarian Youth-ch U18 2022"]
[Site "Eger"]
[Date "2022.07.24"]
[Round "2.6"]
[White "Kiss, Eniko"]
[Black "Juhasz, Judit"]
[Result "0-1"]
[ECO "A36"]
[WhiteElo "1646"]
[BlackElo "2037"]
[Annotator "TA"]
[PlyCount "94"]
[EventDate "2022.07.21"]
[EventType "tourn"]
[EventCountry "HUN"]
[SourceTitle "playchess.com"]
[Source "ChessBase"]
[SourceQuality "1"]
[TimeControl "40/5400+30:1800+30"]

{[%evp 9,94,0,10,10,12,0,0,6,6,-27,2,-56,-49,-49,-43,-92,-91,-85,-62,-111,-86,-120,-108,-167,-160,-260,-244,-291,-263,-268,-265,-265,-257,-258,-267,-247,-242,-250,-247,-242,-241,-397,-397,-379,-353,-370,-343,-342,-300,-380,-381,-361,-360,-830,-831,-724,-723,-830,-715,-836,-798,-685,-478,-730,-685,-29980,-29981,-29981,-29982,-29982,-29983,-29983,-29984,-29984,-29985,-29985,-29986,-29986,-29987,-29987,-29988,-29988,-29988,-29988,-29989,-29989,-29990]} 1. c4 {[%emt 0:00:41]} c5 {[%emt 0:00:37]} 2. g3 {[%emt 0:00:04]} Nc6 {[%emt 0:00:05]} 3. Bg2 {[%emt 0:00:07]} g6 {[%emt 0:00:09]} 4. Nc3 {[%emt 0:00:24]} Bg7 {[%emt 0:00:06]} 5. e3 {[%emt 0:02:44]} e5 {[%emt 0:00:29]} 6. b3 {[%emt 0:01:16] A36: Symmetrical English vs ...g6: 4 Bg2 Bg7.} d6 {[%emt 0:00:29]} 7. Bb2 {[%emt 0:01:07]} Nge7 {[%emt 0:00:24]} 8. Nge2 {[%emt 0:03:44] The position is equal.} Be6 {[%emt 0:00:44]} 9. Ne4 {[%emt 0:07:41]} h6 {[%emt 0:02:21]} 10. d4 {[%emt 0:03:56]} (10. f4 $11) 10... exd4 $15 {[%emt 0:00:57]} 11. exd4 {[%emt 0:00:08] [#] Black must now prevent Qd2.} Nf5 $146 {[%emt 0:04:00]} ({Predecessor:} 11... O-O 12. Qd2 Bg4 13. dxc5 dxc5 14. O-O-O Nd4 15. Bxd4 cxd4 16. f3 Bf5 17. Nxd4 Qb6 18. Qe3 Qa5 19. Kb1 Rfd8 20. g4 Bxe4+ 21. fxe4 Qe5 {0-1 (21) Guardiola Guillot,L (1980)-Marzo Pie,X (2202) Salobrena 2019}) 12. Nd2 {[%emt 0:40:16]} (12. O-O) (12. O-O $15 {should be considered.}) 12... Nfxd4 $17 {[%emt 0:08:09]} ({Reject} 12... cxd4 $6 13. Nf4 $11) 13. Nxd4 {[%emt 0:01:41]} cxd4 {[%emt 0:00:46]} 14. Nf3 {[%emt 0:01:33]} (14. O-O) (14. O-O $15 {deserves consideration.}) 14... Qa5+ {[%emt 0:04:27]} 15. Kf1 {[%emt 0:04:32][%cal Rf3d4]} Qb6 {[%emt 0:04:22] Black is more active.} 16. Rc1 {[%emt 0:04:26]} (16. Qd2 $17 {might work better.}) 16... O-O $19 {[%emt 0:04:29]} 17. Qd2 {[%emt 0:04:20]} (17. h3 $17) 17... d5 {[%emt 0:02:29]} 18. cxd5 {[%emt 0:10:48]} Bxd5 {[%emt 0:02:52]} 19. Ne1 {[%emt 0:01:13]} Qa6+ {[%emt 0:00:40]} 20. Qd3 {[%emt 0:01:17]} Bxg2+ {[%emt 0:00:23]} ({But not} 20... Qxa2 $2 21. Bxd5 Nb4 22. Qd1 Nxd5 23. Bxd4 Bxd4 24. Qxd4 $19) 21. Kxg2 {[%emt 0:00:10] [#] Strongly threatening Qxa6.} Qxa2 {[%emt 0:00:55]} 22. Ba1 {[%emt 0:00:24]} Qa5 {[%emt 0:01:04]} 23. Nf3 {[%emt 0:00:57]} Rad8 {[%emt 0:01:49]} 24. Rhd1 {[%emt 0:01:10]} Qd5 {[%emt 0:00:18]} 25. Kg1 $2 {[%emt 0:02:31]} (25. Qc4) 25... Nb4 {[%emt 0:03:00]} 26. Qd2 {[%emt 0:00:42]} Qxf3 {[%emt 0:01:52]} 27. Qxb4 {[%emt 0:00:10]} d3 {[%emt 0:01:57]} 28. Bxg7 {[%emt 0:00:59]} Kxg7 {[%emt 0:00:04]} 29. Rd2 {[%emt 0:01:14]} Rfe8 {[%emt 0:00:27] Threatens to win with ...Re2.} 30. Rcd1 {[%emt 0:01:56]} Re2 {[%emt 0:01:52]} 31. Qf4 $2 {[%emt 0:02:28]} (31. Rxe2 Qxe2 32. Qc3+ Kh7 33. Rd2) 31... Qxf4 {[%emt 0:00:20]} 32. gxf4 {[%emt 0:00:02]} Rxd2 {[%emt 0:00:11]} 33. Rxd2 {[%emt 0:00:05][%mdl 4096] Endgame KR-KR} Kf6 {[%emt 0:00:04] aiming for ...Kf5.} 34. Kg2 {[%emt 0:00:09]} Kf5 {[%emt 0:00:08]} 35. Kf3 {[%emt 0:00:04]} b5 {[%emt 0:00:23]} 36. Ke3 {[%emt 0:00:31]} (36. b4 $142 Rd4 37. Ke3 Rxb4 38. Ra2) 36... a5 {[%emt 0:00:13]} 37. Rxd3 {[%emt 0:00:37]} Rxd3+ {[%emt 0:00:05] Black mates.} 38. Kxd3 {[%emt 0:00:06]} Kxf4 {[%emt 0:00:07] KP-KP} 39. Kd4 {[%emt 0:00:07]} a4 {[%emt 0:00:04]} 40. bxa4 {[%emt 0:00:00]} bxa4 {[%emt 0:00:00]} 41. Kc4 {[%emt 0:00:15]} Kf3 {[%emt 0:00:08]} 42. Kb4 {[%emt 0:00:06]} Kxf2 {[%emt 0:00:05]} 43. Kxa4 {[%emt 0:00:03]} f5 {[%emt 0:00:06][%cal Bf7f5,Bf5f4,Bf4f3,Bf3f2][%mdl 32]} 44. Kb3 {[%emt 0:00:11]} f4 {[%emt 0:00:04]} 45. Kc2 {[%emt 0:00:05]} f3 {[%emt 0:00:04]} 46. Kd2 {[%emt 0:00:08]} Kg2 {[%emt 0:00:04]} 47. h4 {[%emt 0:00:27]} f2 {[%emt 0:00:05] White got outplayed after the opening.  Weighted Error Value: White=0.63/Black=0.09 (flawless)} 0-1

[Event "Hungarian Youth-ch U18 2022"]
[Site "Eger"]
[Date "2022.07.24"]
[Round "2.7"]
[White "Ivan, Reka Gyongyver"]
[Black "Sulyok, Eszter"]
[Result "0-1"]
[ECO "D00"]
[WhiteElo "1877"]
[BlackElo "2091"]
[Annotator "TA"]
[PlyCount "116"]
[EventDate "2022.07.21"]
[EventType "tourn"]
[EventCountry "HUN"]
[SourceTitle "playchess.com"]
[Source "ChessBase"]
[SourceQuality "1"]
[TimeControl "40/5400+30:1800+30"]

{[%evp 9,116,0,0,0,1,-16,-31,-39,0,-11,27,10,85,39,35,23,12,-31,-29,-90,-97,-116,-37,-41,-48,-46,-39,-32,17,20,38,-58,-74,-71,-66,-118,-116,-122,-117,-153,-155,-154,-150,-154,-112,-157,-107,-110,-103,-114,-117,-214,-220,-208,-210,-217,-217,-211,-208,-202,-198,-262,-227,-306,-204,-451,-307,-302,-235,-235,-224,-235,-235,-235,-186,-186,-166,-593,-593,-579,-579,-579,-564,-564,-549,-513,-496,-435,-433,-908,-862,-819,-812,-779,-771,-991,-856,-1184,-1177,-1064,-1151,-6215,-7719,-29958,-6096,-5615,-5102,-2028,-1450]} 1. d4 {[%emt 0:00:34]} d5 {[%emt 0:00:42]} 2. Bf4 {[%emt 0:00:14]} Nf6 {[%emt 0:01:24]} 3. e3 {[%emt 0:00:24]} c5 {[%emt 0:00:14]} 4. c3 {[%emt 0:00:26]} Nc6 {[%emt 0:00:22]} 5. Nd2 {[%emt 0:00:27]} Bf5 {[%emt 0:00:35]} 6. Ngf3 {[%emt 0:02:54] D00: 1 d4 d5: Unusual lines.} Qb6 {[%emt 0:07:21]} 7. b4 {[%emt 0:03:32]} cxb4 {[%emt 0:06:56] [#]} 8. c4 $146 {[%emt 0:00:10] Black is slightly better.} ({Predecessor:} 8. cxb4 Nxb4 9. Rc1 Rc8 10. Qa4+ Kd8 11. Rxc8+ Kxc8 12. e4 dxe4 13. Bb5 exf3 14. O-O {0-1 (26) Petesch,G (2330)-Makhmudov,S (2115) Chess.com INT 2021}) 8... e6 {[%emt 0:05:05]} 9. c5 {[%emt 0:00:23]} Qd8 {[%emt 0:07:55]} 10. Bb5 {[%emt 0:00:46] With the idea Ne5.} Rc8 {[%emt 0:13:36]} (10... Qa5 $11 11. Qa4 Qxa4 12. Bxa4 Nd7) 11. Qa4 {[%emt 0:11:06]} (11. Ne5 $16) 11... Nd7 $14 {[%emt 0:04:11]} 12. Bxc6 {[%emt 0:07:29]} Rxc6 {[%emt 0:05:33]} 13. Qxb4 {[%emt 0:12:00]} b6 {[%emt 0:03:45][%cal Rb6c5]} 14. Qa4 {[%emt 0:00:29]} (14. O-O $1 $11 {remains equal.}) 14... Qc8 $1 $17 {[%emt 0:01:08]} 15. Nb3 {[%emt 0:03:51] [#]} bxc5 {[%emt 0:05:58]} ({Better is} 15... Bd3 $1 $17 {Strongly threatening ...f6.} 16. Kd2 Bc4) 16. dxc5 $15 {[%emt 0:01:18]} Bxc5 {[%emt 0:02:45] ...Ra6 is the strong threat.} (16... Nxc5 $2 17. Nxc5 Bc2 18. Nb3 $18) (16... Bd3 {is more complex.} 17. Ne5 Nxe5 18. Bxe5 Qa6) 17. O-O $1 {[%emt 0:01:59]} O-O {[%emt 0:07:38]} 18. Rfc1 {[%emt 0:05:26]} Qa8 {[%emt 0:12:26]} (18... Bd3 $15 {feels stronger.}) 19. Na5 $1 $11 {[%emt 0:09:15]} Ra6 {[%emt 0:00:58]} 20. Qb5 {[%emt 0:00:54] [#]} ({White must play} 20. Qxd7 $14 Rxa5 21. Bc7) 20... Bd3 $1 $15 {[%emt 0:02:47]} 21. Qxd7 {[%emt 0:00:47]} (21. Qxd3 Rxa5) 21... Rxa5 {[%emt 0:00:22]} 22. Ne5 {[%emt 0:00:26]} (22. a4 $1 $15) 22... Bb5 $17 {[%emt 0:01:40] This bishop pair is nice.} 23. Qc7 {[%emt 0:01:13]} Bb6 {[%emt 0:00:21]} 24. Qe7 {[%emt 0:01:09]} Qe8 $36 {[%emt 0:03:00][%mdl 2048] Black is on the roll.} 25. Qd6 {[%emt 0:02:29]} f6 {[%emt 0:02:26]} 26. Nc6 {[%emt 0:01:59]} Ra6 {[%emt 0:01:29]} 27. a4 {[%emt 0:12:36]} Rxa4 {[%emt 0:02:41]} (27... Bxc6 $142 28. Rxc6 {[#]} Bc5 $1 29. Rxa6 Bxd6 30. Bxd6 Rf7) 28. Rxa4 {[%emt 0:00:26]} Bxa4 {[%emt 0:00:05]} 29. Ne7+ {[%emt 0:00:40]} Kh8 {[%emt 0:00:03]} 30. Rc8 {[%emt 0:00:53]} (30. Nc8 $17 {was necessary.}) 30... Bd8 $19 {[%emt 0:00:14]} 31. Nc6 {[%emt 0:05:20]} Bxc6 {[%emt 0:00:21]} 32. Rxc6 {[%emt 0:00:18]} e5 {[%emt 0:00:25]} 33. Bg3 {[%emt 0:00:18]} d4 {[%emt 0:01:06]} 34. exd4 {[%emt 0:02:02]} exd4 {[%emt 0:00:05][%cal Re8e1]} 35. h4 {[%emt 0:00:16]} (35. h3 $142) 35... Bb6 {[%emt 0:00:13]} 36. h5 {[%emt 0:01:11]} Qd8 {[%emt 0:01:16]} 37. Qf4 $2 {[%emt 0:00:13]} (37. Kf1 {might work better.}) 37... Qd5 {[%emt 0:00:20]} 38. Qd6 {[%emt 0:04:08]} Qxd6 {[%emt 0:01:05]} 39. Bxd6 {[%emt 0:00:09][%mdl 4096] Endgame KRB-KRB} Rd8 {[%emt 0:00:21]} 40. Be7 {[%emt 0:00:00]} Re8 {[%emt 0:00:00]} 41. Bc5 {[%emt 0:02:49]} Bxc5 {[%emt 0:07:07]} 42. Rxc5 {[%emt 0:00:09] KR-KR} Ra8 {[%emt 0:01:17]} 43. Rd5 {[%emt 0:06:27]} (43. Ra5 {is a better chance.}) 43... a5 {[%emt 0:00:36][%cal Ba7a5,Ba5a4,Ba4a3][%mdl 32]} 44. Rxd4 {[%emt 0:00:08]} a4 {[%emt 0:00:06]} 45. Rd2 {[%emt 0:00:24]} a3 {[%emt 0:00:07]} 46. Ra2 {[%emt 0:00:05]} Kg8 {[%emt 0:00:03]} 47. Kf1 {[%emt 0:00:36]} Kf7 {[%emt 0:00:06]} 48. Ke2 {[%emt 0:00:26]} Ke6 {[%emt 0:00:02]} 49. g4 {[%emt 0:02:26]} (49. Kd1 $142 Kf5 50. Kc2) 49... Ke5 {[%emt 0:00:16]} 50. Ke3 {[%emt 0:00:09]} Ra7 {[%emt 0:01:41]} 51. f3 {[%emt 0:04:15]} Ra4 {[%emt 0:01:49]} 52. Ke2 {[%emt 0:03:07]} f5 {[%emt 0:01:19]} 53. gxf5 {[%emt 0:03:35]} Kxf5 {[%emt 0:00:07] Threatens to win with ...Kg5.} 54. Ke3 {[%emt 0:01:35]} Kg5 {[%emt 0:00:43]} 55. f4+ {[%emt 0:00:45]} Kxh5 {[%emt 0:00:28] Hoping for ...Kg4.} 56. Rh2+ {[%emt 0:00:36]} Kg6 {[%emt 0:00:24]} 57. Rg2+ {[%emt 0:00:11]} Kf6 {[%emt 0:00:49] ( -> ...a2)} 58. Ra2 {[%emt 0:00:12]} Kf5 {[%emt 0:00:05] Weighted Error Value: White=0.81/Black=0.27 (precise)} 0-1

[Event "Hungarian Youth-ch U18 2022"]
[Site "Eger"]
[Date "2022.07.25"]
[Round "3.1"]
[White "Reviczki, Roland"]
[Black "Daroczi, Donat"]
[Result "0-1"]
[ECO "B78"]
[WhiteElo "2160"]
[BlackElo "2163"]
[Annotator "TA"]
[PlyCount "72"]
[EventDate "2022.07.21"]
[EventType "tourn"]
[EventCountry "HUN"]
[SourceTitle "playchess.com"]
[Source "ChessBase"]
[SourceQuality "1"]
[TimeControl "40/5400+30:1800+30"]

{[%evp 24,72,34,30,43,26,35,33,40,34,40,40,57,0,0,0,0,0,61,64,49,-80,-83,-74,-82,-206,-44,-50,-47,-52,-48,-50,-49,-41,-32,-161,-134,-707,-663,-973,-965,-29985,-29986,-29983,-29984,-29990,-29991,-29997,-29998,-29998,-29999]} 1. e4 {[%emt 0:00:35]} c5 {[%emt 0:00:55]} 2. Nf3 {[%emt 0:00:07]} d6 {[%emt 0:00:18]} 3. d4 {[%emt 0:00:09]} cxd4 {[%emt 0:00:07]} 4. Nxd4 {[%emt 0:00:05]} Nf6 {[%emt 0:00:08]} 5. Nc3 {[%emt 0:00:06]} g6 {[%emt 0:00:08]} 6. Be3 {[%emt 0:00:08]} Bg7 {[%emt 0:00:15]} 7. f3 {[%emt 0:00:05]} O-O {[%emt 0:00:12]} 8. Qd2 {[%emt 0:00:04]} Nc6 {[%emt 0:00:07]} 9. Bc4 {[%emt 0:00:08]} Bd7 {[%emt 0:00:41]} 10. O-O-O {[%emt 0:00:09]} Rc8 {[%emt 0:00:10]} 11. Bb3 {[%emt 0:00:13]} Nxd4 $1 {[%emt 0:00:23][%mdl 4] is currently scoring better than 11...Ne5.} 12. Bxd4 {[%emt 0:00:07]} b5 {[%emt 0:00:06]} 13. Nd5 {[%emt 0:00:51]} Nxd5 {[%emt 0:00:31] B78: Sicilian Dragon: Yugoslav Attack, 9 Bc4 Bd7 10 0-0-0 Rc8.} 14. Bxg7 $1 {[%emt 0:00:06]} Kxg7 {[%emt 0:00:08]} 15. exd5 {[%emt 0:00:05]} a5 {[%emt 0:00:07] ...a4 is the strong threat. White is slightly better.} 16. a3 {[%emt 0:00:17]} Kg8 {[%emt 0:00:10][%cal Ob5b4]} 17. Rhe1 {[%emt 0:08:02]} Rc5 {[%emt 0:00:11][%cal Ob5b4]} 18. Qe3 {[%emt 0:26:26]} ({White should play} 18. Re3 $1 $14) 18... Qc7 {[%emt 0:00:49] aiming for ...a4.} 19. Rd2 {[%emt 0:05:17]} ({Wrong is} 19. Qxe7 $2 a4 20. Kb1 b4 21. Bxa4 (21. axb4 $2 axb3 22. bxc5 bxc2+ 23. Kxc2 Qxc5+ 24. Kd3 Bb5+ 25. Ke4 Re8 $19) 21... Bxa4 22. Qxc7 Bxc2+ 23. Kc1 Rxc7 $19) 19... Rc8 $1 $36 {[%emt 0:02:06][%mdl 2048] White must now prevent ...a4. Black is pushing.} 20. Ree2 {[%emt 0:01:08] [#]} ({Don't go for} 20. Qxe7 $2 a4 21. Qe3 axb3 22. Qxb3 Qa5 $19) 20... a4 $146 {[%emt 0:05:23]} (20... Qb6 $11) ({Predecessor:} 20... Re8 21. Qd4 Qa7 22. g4 Rc7 23. Qf4 Kg7 24. h4 h6 25. Rd4 Bc8 {1-0 (54) Aroshidze,L (2565)-Oliva Castaneda,K (2419) Barbera del Valles 2014}) 21. Ba2 $14 {[%emt 0:00:26]} Qb6 {[%emt 0:01:10]} 22. Kd1 {[%emt 0:23:51]} (22. Rd4 $1 $14 {keeps the upper hand.}) 22... b4 $1 $17 {[%emt 0:14:26]} 23. axb4 {[%emt 0:00:33]} Qxb4 {[%emt 0:00:04]} 24. c3 {[%emt 0:07:12] [#]} (24. Qa3 $17 Qxa3 25. bxa3) 24... a3 $1 {[%emt 0:12:35]} 25. Ke1 $15 {[%emt 0:02:17]} Qh4+ {[%emt 0:12:25]} 26. g3 {[%emt 0:00:41]} Qh3 {[%emt 0:04:05] And now ...axb2 would win.} 27. c4 {[%emt 0:05:14]} axb2 {[%emt 0:00:35]} 28. Rxb2 {[%emt 0:00:06]} e6 {[%emt 0:01:25] Threatens to win with ...exd5.} 29. dxe6 {[%emt 0:11:50]} ({White should try} 29. Qf4 $15) 29... Bxe6 $19 {[%emt 0:00:09]} 30. Qd4 $2 {[%emt 0:01:16][%mdl 8192]} (30. Rb5 $17) 30... Bxc4 {[%emt 0:06:27]} 31. Bxc4 {[%emt 0:01:02]} Rxc4 {[%emt 0:01:48]} 32. Qxd6 {[%emt 0:00:09]} Rc1+ {[%emt 0:00:12] Black mates.} 33. Kd2 {[%emt 0:00:05]} Qf1 {[%emt 0:00:12]} 34. Ke3 {[%emt 0:07:02]} R1c3+ {[%emt 0:13:45]} 35. Kf4 {[%emt 0:00:50]} Qxf3+ {[%emt 0:00:34]} 36. Kg5 {[%emt 0:00:06]} Qf5+ {[%emt 0:00:16] Weighted Error Value: White=0.80/Black=0.16 (very precise)} 0-1

[Event "Hungarian Youth-ch U18 2022"]
[Site "Eger"]
[Date "2022.07.25"]
[Round "3.2"]
[White "Virag, Balint"]
[Black "Karacsonyi, Gellert"]
[Result "0-1"]
[ECO "B43"]
[WhiteElo "2164"]
[BlackElo "2338"]
[Annotator "TA"]
[PlyCount "112"]
[EventDate "2022.07.21"]
[EventType "tourn"]
[EventCountry "HUN"]
[SourceTitle "playchess.com"]
[Source "ChessBase"]
[SourceQuality "1"]
[TimeControl "40/5400+30:1800+30"]

{[%evp 12,112,21,-29,-11,-17,-12,-31,1,4,9,6,36,0,48,43,51,50,45,44,62,59,53,57,46,25,18,9,13,12,31,0,0,0,0,0,0,0,0,19,19,0,28,0,0,0,0,-7,25,0,-12,-23,-23,-23,-30,-59,-65,-65,-60,-64,-45,-60,0,0,0,-105,-105,-105,0,-18,0,-114,-114,-114,-114,-214,-214,-235,-215,-265,-268,-456,-422,-1683,-1683,-1343,-471,-29966,-29967,-29971,-29971,-29975,-29976,-29976,-29977,-29979,-29980,-29980,-29981,-29980,-29981,-29981,-29975]} 1. e4 {[%emt 0:03:07]} c5 {[%emt 0:00:44]} 2. Nf3 {[%emt 0:00:07]} e6 {[%emt 0:00:13]} 3. d4 {[%emt 0:00:21]} cxd4 {[%emt 0:00:06]} 4. Nxd4 {[%emt 0:00:05]} a6 {[%emt 0:00:08]} 5. Nc3 {[%emt 0:01:31]} Qc7 {[%emt 0:01:40]} 6. Be3 {[%emt 0:03:04]} Bb4 {[%emt 0:03:38]} 7. Qd3 {[%emt 0:03:58] is cutting edge theory.} (7. Nde2 $142) 7... Nf6 $1 $11 {[%emt 0:01:58][%cal Of6e4] Black wants to play ...Nxe4! B43: Sicilian: Kan Variation: 5 Nc3.} 8. Bd2 {[%emt 0:04:40]} O-O {[%emt 0:07:34]} 9. a3 {[%emt 0:03:42]} Bc5 {[%emt 0:08:38] Black is slightly better.} (9... Bxc3 $5 10. Qxc3 (10. Bxc3 d5 $11) 10... Qxc3 11. Bxc3 Nxe4 $15) 10. Nb3 {[%emt 0:05:21] [#]} Ba7 $146 {[%emt 0:02:11]} ({Predecessor:} 10... Be7 11. Qg3 d6 12. Bh6 Ne8 13. Bd2 Nd7 14. f4 b5 15. Bd3 Nb6 16. O-O Nc4 {½-½ (48) Kollari,S (2033)-Kohlweyer,B (2422) Kukes 2014}) 11. Be3 {[%emt 0:01:35]} b6 {[%emt 0:16:54]} 12. g3 {[%emt 0:20:48]} Bb7 {[%emt 0:05:41]} (12... Nc6 $11) 13. Bf4 $14 {[%emt 0:02:56]} e5 {[%emt 0:06:17]} 14. Bg5 {[%emt 0:01:33]} Nxe4 {[%emt 0:13:58]} 15. Nxe4 {[%emt 0:00:14] Be7 is the strong threat.} d5 $1 {[%emt 0:07:25] [#]} 16. Nf6+ {[%emt 0:08:14]} gxf6 {[%emt 0:00:09]} 17. Bh6 {[%emt 0:05:47] And now 0-0-0 would win.} ({Much weaker is} 17. Bxf6 Nd7 18. Qd2 (18. Qf5 Nxf6 19. Qg5+ Kh8 $11) 18... Nxf6 $11) 17... Re8 $1 {[%emt 0:06:33]} 18. Bh3 {[%emt 0:18:21] Threatens to win with Qf5.} (18. O-O-O $5 {[%cal Rd3f5]} Qd6 19. Bg2 $11) 18... Qc4 $1 {[%emt 0:05:43]} 19. Qf3 {[%emt 0:06:12]} Qe4+ $1 {[%emt 0:04:27]} 20. Qxe4 {[%emt 0:00:07]} dxe4 {[%emt 0:00:02]} 21. Ke2 {[%emt 0:05:09]} Nc6 {[%emt 0:00:48]} 22. Rhd1 {[%emt 0:01:19] Prevents Nd4+.} Red8 {[%emt 0:00:22] Inhibits Rd6.} 23. c3 {[%emt 0:00:16] Against Nd4+} a5 {[%emt 0:02:16]} 24. a4 {[%emt 0:01:04]} Ba6+ {[%emt 0:00:55]} 25. Ke1 {[%emt 0:00:27]} Ne7 {[%emt 0:01:34]} 26. Rxd8+ {[%emt 0:01:22]} (26. Nd2 {looks sharper.} Bb7 27. Bg2 Nf5 28. Nxe4 Kh8 29. Bc1) 26... Rxd8 {[%emt 0:00:01]} 27. Rd1 {[%emt 0:00:13]} (27. Be3 $5 {[%cal Rb3a5]}) 27... Rxd1+ {[%emt 0:03:14]} 28. Kxd1 {[%emt 0:00:02]} Bb8 {[%emt 0:00:49]} 29. Bd7 {[%emt 0:02:07]} Bd6 {[%emt 0:00:28]} 30. Be3 {[%emt 0:00:31][%mdl 1024] White has compensation.} (30. Nd2 $5 {[%cal Rd2e4]}) 30... Nd5 {[%emt 0:00:23]} 31. Bf5 {[%emt 0:00:48]} Bb7 {[%emt 0:00:26]} 32. Nd2 {[%emt 0:00:42]} Bc6 {[%emt 0:00:05]} 33. b3 {[%emt 0:00:43]} Nxc3+ {[%emt 0:00:12]} 34. Kc2 {[%emt 0:00:02]} Nd5 {[%emt 0:01:07]} 35. Nxe4 {[%emt 0:00:44]} Be7 {[%emt 0:00:31]} 36. Nc3 {[%emt 0:00:34]} Bd8 {[%emt 0:00:45]} (36... Nxc3 $15 37. Kxc3 b5) 37. Nxd5 $11 {[%emt 0:00:43]} Bxd5 {[%emt 0:00:03][%mdl 4096] Endgame KBB-KBB} 38. Bh6 {[%emt 0:00:23]} (38. g4 $11 {keeps the balance.}) 38... Be7 $17 {[%emt 0:00:20]} 39. Be3 {[%emt 0:00:03]} Bd8 {[%emt 0:01:02]} (39... Bc5 $17) 40. Bh6 $11 {[%emt 0:00:00]} Be7 {[%emt 0:00:00]} ({Black should play} 40... Bc6 $11) 41. Be3 $17 {[%emt 0:03:19]} Bc5 {[%emt 0:02:09] White is now going downhill.} 42. Bxc5 {[%emt 0:00:06]} bxc5 {[%emt 0:00:04] KB-KB} 43. Kc3 {[%emt 0:02:47] [#]} (43. f4 $17 {is the only way for White.}) 43... e4 $1 $19 {[%emt 0:01:27]} 44. Bg4 {[%emt 0:12:21]} Kf8 {[%emt 0:00:27]} 45. Be2 {[%emt 0:07:49] [#]} Ke7 $1 {[%emt 0:00:41]} 46. Bc4 $2 {[%emt 0:02:54]} (46. Bd1) 46... Kd6 {[%emt 0:07:30] Hoping for ...Bxc4.} 47. Bxd5 {[%emt 0:00:55]} (47. g4 $142 Ke6 48. Be2) 47... Kxd5 {[%emt 0:00:25] KP-KP} 48. g4 {[%emt 0:00:06]} h6 {[%emt 0:00:18]} (48... f5 $142 49. gxf5 f6) 49. h3 {[%emt 0:02:36]} (49. h4 $19) 49... f5 {[%emt 0:00:19] Black mates.} 50. gxf5 {[%emt 0:00:12]} f6 {[%emt 0:00:21]} 51. h4 {[%emt 0:02:06]} h5 {[%emt 0:00:06]} 52. Kc2 {[%emt 0:01:03]} c4 {[%emt 0:00:27]} 53. bxc4+ {[%emt 0:00:57]} Kxc4 {[%emt 0:00:06]} 54. Kd2 {[%emt 0:00:04]} Kb4 {[%emt 0:00:17]} 55. Ke3 {[%emt 0:00:05]} Kxa4 {[%emt 0:00:04]} 56. Kxe4 {[%emt 0:00:05]} Kb4 {[%emt 0:00:16] Weighted Error Value: White=0.42/Black=0.15 (very precise)} 0-1